[Event "FIDE World Rapid-ch Open 2018"]
[White "Nakamura, Hikaru"]
[Black "Carlsen, Magnus"]
[Site "St. Petersburg"]
[Round "15.1"]
[Annotator "RC"]
[Result "1/2-1/2"]
[Date "2018.12.28"]
[WhiteElo "2746"]
[BlackElo "2835"]
[PlyCount "116"]
[TimeControl "900+10"]

1. d4 {[%emt 0:0:0]} d5 {[%emt 0:0:0]} 2. c4 {[%emt 0:0:0]} e6 {[%emt 0:0:0]} 3. Nf3 {[%emt 0:0:0]} a6 {[%emt 0:0:2]} 4. Bg5 {[%emt 0:0:0]} Be7 {[%emt 0:0:15]} 5. Bxe7 {[%emt 0:0:6]} Nxe7 {[%emt 0:0:29]} 6. e3 {[%emt 0:0:0]} 0-0 {[%emt 0:0:4]} 7. Nc3 {[%emt 0:0:7]} Nd7 {[%emt 0:0:29]} 8. Rc1 {[%emt 0:0:10]} dxc4 {[%emt 0:1:23]} 9. Bxc4 {[%emt 0:0:6]} c5 {[%emt 0:0:8]
} 10. dxc5 {[%emt 0:0:40]} Nxc5 {[%emt 0:0:2]} 11. b4 {[%emt 0:0:38]
} Qxd1+ {[%emt 0:0:23]} 12. Rxd1 {[%emt 0:0:15]} Nd7 {[%emt 0:0:0]} 13. 0-0 {[%emt 0:0:20]} b5 {[%emt 0:2:39]} 14. Bb3 {[%emt 0:2:15]} Nf6 {[%emt 0:0:28]} 15. Ne5 {[%emt 0:0:20]} Ra7 {[%emt 0:1:32]} 16. Nd3 {[%emt 0:0:15]
} Bb7 {[%emt 0:0:21]} 17. Nc5 {[%emt 0:0:36]} Bd5 {[%emt 0:0:0]} 18. Nxd5 {[%emt 0:2:14]} Nfxd5 {[%emt 0:0:31]} 19. a3 {[%emt 0:0:7]} a5 {[%emt 0:0:6]} 20. e4 {[%emt 0:1:54]} Nc3 {[%emt 0:1:12]} 21. Rd2 {[%emt 0:0:10]
} axb4 {[%emt 0:0:2]} 22. axb4 {[%emt 0:0:1]} Rfa8 {[%emt 0:0:0]} 23. Rc2 {[%emt 0:3:2]} Na2 {[%emt 0:0:11]} 24. Bxa2 {[%emt 0:0:33]} Rxa2 {[%emt 0:0:1]} 25. Rxa2 {[%emt 0:0:32]} Rxa2 {[%emt 0:0:1]} 26. g3 {[%emt 0:0:24]
} Nc6 {[%emt 0:1:51]} 27. Rc1 {[%emt 0:0:33]} Nxb4 {[%emt 0:0:0]} 28. Rb1 {[%emt 0:0:2]} Rc2 {[%emt 0:0:53]} 29. Nxe6 {[%emt 0:0:2]} Rc4 {[%emt 0:0:33]} 30. Nc7 {[%emt 0:1:1]} Rxc7 {[%emt 0:0:5]} 31. Rxb4 {[%emt 0:0:2]
} Rb7 {[%emt 0:0:8]} 32. Kf1 {[%emt 0:0:41]} Kf8 {[%emt 0:0:0]} 33. Ke2 {[%emt 0:0:22]} Ke7 {[%emt 0:0:1]} 34. e5 {[%emt 0:0:18]} Ke6 {[%emt 0:0:5]} 35. f4 {[%emt 0:0:1]} Kd5 {[%emt 0:0:3]} 36. Kd3 {[%emt 0:0:0]} Kc5 {[%emt 0:0:4]} 37. Re4 {[%emt 0:0:37]} b4 {[%emt 0:1:50]} 38. Kc2 {[%emt 0:0:7]} Ra7 {[%emt 0:0:59]} 39. Kb2 {[%emt 0:0:15]} Rd7 {[%emt 0:0:3]
} 40. Re2 {[%emt 0:0:17]} g6 {[%emt 0:0:22]} 41. g4 {[%emt 0:0:0]} Ra7 {[%emt 0:0:52]} 42. f5 {[%emt 0:0:22]} Kd5 {[%emt 0:0:11]} 43. e6 {[%emt 0:0:31]} fxe6 {[%emt 0:0:8]} 44. Rxe6 {[%emt 0:0:1]} gxf5 {[%emt 0:0:7]
} 45. gxf5 {[%emt 0:0:2]} Rf7 {[%emt 0:0:2]} 46. Kb3 {[%emt 0:0:24]
} h5 {[%emt 0:0:3]} 47. Kxb4 {[%emt 0:0:30]} Rxf5 {[%emt 0:0:0]} 48. Re3 {[%emt 0:0:11]} Kd4 {[%emt 0:0:43]} 49. Rh3 {[%emt 0:0:1]} Re5 {[%emt 0:0:8]} 50. Kb3 {[%emt 0:0:11]} Re3+ {[%emt 0:0:5]} 51. Rxe3 {[%emt 0:0:2]
} Kxe3 {[%emt 0:0:2]} 52. h4 {[%emt 0:0:6]} Kf3 {[%emt 0:0:0]} 53. Kc2 {[%emt 0:0:2]} Kg3 {[%emt 0:0:1]} 54. Kd2 {[%emt 0:0:1]} Kxh4 {[%emt 0:0:2]} 55. Ke1 {[%emt 0:0:2]} Kg3 {[%emt 0:0:1]} 56. Kf1 {[%emt 0:0:1]
} h4 {[%emt 0:0:4]} 57. Kg1 {[%emt 0:0:1]} h3 {[%emt 0:0:1]
} 58. Kh1 {[%emt 0:0:1]} h2 1/2-1/2

[Event "FIDE World Rapid-ch Open 2018"]
[White "Kamsky, Gata"]
[Black "Matlakov, Maxim"]
[Site "St. Petersburg"]
[Round "15.6"]
[Annotator "RC"]
[Result "1/2-1/2"]
[Date "2018.12.28"]
[WhiteElo "2666"]
[BlackElo "2700"]
[PlyCount "73"]
[TimeControl "900+10"]

1. d4 {[%emt 0:0:0]} Nf6 {[%emt 0:0:0]} 2. Nf3 {[%emt 0:0:0]} d5 {[%emt 0:0:0]
} 3. Bf4 {[%emt 0:0:0]} Bf5 {[%emt 0:0:0]} 4. e3 {[%emt 0:0:0]} e6 {[%emt 0:0:0]} 5. c4 {[%emt 0:0:2]} Bd6 {[%emt 0:0:4]} 6. Bg3 {[%emt 0:0:26]
} 0-0 {[%emt 0:0:29]} 7. Nc3 {[%emt 0:0:2]} c6 {[%emt 0:1:3]
} 8. Qb3 {[%emt 0:0:16]} Bxg3 {[%emt 0:1:16]} 9. hxg3 {[%emt 0:0:2]} Nbd7 {[%emt 0:0:21]
} 10. Be2 {[%emt 0:0:14]} Rb8 {[%emt 0:1:2]} 11. a4 {[%emt 0:0:0]} h6 {[%emt 0:0:41]} 12. 0-0 {[%emt 0:0:9]} a5 {[%emt 0:0:38]} 13. Rfd1 {[%emt 0:1:1]} Re8 {[%emt 0:0:40]} 14. Qa3 {[%emt 0:0:15]} Ra8 {[%emt 0:1:14]
} 15. Rac1 {[%emt 0:0:39]} Nb8 {[%emt 0:0:14]} 16. Ne5 {[%emt 0:0:43]
} Na6 {[%emt 0:0:19]} 17. b3 {[%emt 0:2:34]} Nb4 {[%emt 0:0:0]} 18. Qb2 {[%emt 0:0:2]} Nd7 {[%emt 0:0:52]} 19. Nf3 {[%emt 0:0:51]} Qe7 {[%emt 0:0:7]} 20. Na2 {[%emt 0:0:7]} Nxa2 {[%emt 0:0:51]} 21. Qxa2 {[%emt 0:0:1]
} Bg4 {[%emt 0:0:1]} 22. Ne1 {[%emt 0:0:21]} Bxe2 {[%emt 0:0:0]} 23. Qxe2 {[%emt 0:0:2]} Nb6 {[%emt 0:0:20]} 24. Nd3 {[%emt 0:0:27]} Red8 {[%emt 0:0:52]} 25. Qc2 {[%emt 0:0:6]} Nd7 {[%emt 0:0:13]} 26. Rb1 {[%emt 0:0:12]
} Qd6 {[%emt 0:0:12]} 27. Qe2 {[%emt 0:1:45]} Nf6 {[%emt 0:0:0]} 28. Rdc1 {[%emt 0:0:10]} Ne4 {[%emt 0:0:8]} 29. Rc2 {[%emt 0:0:3]} Ra7 {[%emt 0:0:15]} 30. g4 {[%emt 0:0:5]} Re8 {[%emt 0:0:16]} 31. Qf3 {[%emt 0:0:33]
} Raa8 {[%emt 0:1:1]} 32. Qf4 {[%emt 0:0:26]} Qe7 {[%emt 0:0:0]} 33. f3 {[%emt 0:0:23]} Nf6 {[%emt 0:0:7]} 34. Kf2 {[%emt 0:1:21]} Ra6 {[%emt 0:0:13]} 35. Kg1 {[%emt 0:0:14]} Rb6 {[%emt 0:0:17]} 36. c5 {[%emt 0:0:0]} Ra6 {[%emt 0:0:3]} 37. Qg3 {[%emt 0:0:9]} 1/2-1/2

[Event "FIDE World Rapid-ch Open 2018"]
[White "Jakovenko, Dmitry"]
[Black "Salem, A.R. Saleh"]
[Site "St. Petersburg"]
[Round "15.10"]
[Annotator "ChessBase"]
[Result "1-0"]
[Date "2018.12.28"]
[WhiteElo "2735"]
[BlackElo "2660"]
[PlyCount "75"]
[TimeControl "900+10"]

1. Nf3 {[%emt 0:0:0]} c5 {[%emt 0:0:0]} 2. c4 {[%emt 0:0:0]} Nf6 {[%emt 0:0:0]
} 3. Nc3 {[%emt 0:0:0]} d5 {[%emt 0:0:0]} 4. cxd5 {[%emt 0:0:0]} Nxd5 {[%emt 0:0:0]} 5. e3 {[%emt 0:0:2]} e6 {[%emt 0:0:0]} 6. d4 {[%emt 0:0:4]} Be7 {[%emt 0:0:13]} 7. Bd3 {[%emt 0:0:51]} 0-0 {[%emt 0:0:0]} 8. 0-0 {[%emt 0:0:22]} Nc6 {[%emt 0:0:2]} 9. a3 {[%emt 0:0:38]} b6 {[%emt 0:0:1]
} 10. Qc2 {[%emt 0:0:7]} Nxc3 {[%emt 0:0:2]} 11. bxc3 {[%emt 0:0:11]
} g6 {[%emt 0:0:1]} 12. Bb2 {[%emt 0:0:35]} Bb7 {[%emt 0:0:0]} 13. Qe2 {[%emt 0:0:14]} Qc7 {[%emt 0:0:11]} 14. Rad1 {[%emt 0:0:18]} Rfd8 {[%emt 0:0:3]} 15. h4 {[%emt 0:0:23]} Rac8 {[%emt 0:0:2]} 16. h5 {[%emt 0:0:24]
} Rd5 {[%emt 0:0:2]} 17. hxg6 {[%emt 0:0:50]} hxg6 {[%emt 0:0:0]} 18. e4 {[%emt 0:0:21]} Rh5 {[%emt 0:0:2]} 19. g3 {[%emt 0:0:15]} Na5 {[%emt 0:2:6]} 20. Kg2 {[%emt 0:0:21]} cxd4 {[%emt 0:0:2]} 21. cxd4 {[%emt 0:0:5]
} Nc4 {[%emt 0:0:6]} 22. Ba1 {[%emt 0:0:22]} b5 {[%emt 0:0:0]} 23. Rh1 {[%emt 0:0:55]} Rxh1 {[%emt 0:0:3]} 24. Rxh1 {[%emt 0:0:2]} Bf6 {[%emt 0:0:1]} 25. Qd1 {[%emt 0:3:26]} Qe7 {[%emt 0:2:2]} 26. a4 {[%emt 0:0:45]
} b4 {[%emt 0:0:38]} 27. Qe2 {[%emt 0:0:23]} Nb6 {[%emt 0:0:0]} 28. Qd1 {[%emt 0:1:38]} a5 {[%emt 0:0:35]} 29. Ne5 {[%emt 0:0:31]} Bg7 {[%emt 0:1:13]} 30. Ng4 {[%emt 0:1:12]} f5 {[%emt 0:2:41]} 31. Nh6+ {[%emt 0:0:2]
} Kf8 {[%emt 0:0:1]} 32. d5 {[%emt 0:0:53]} Bxa1 {[%emt 0:0:0]} 33. Qxa1 {[%emt 0:0:8]} Rc3 {[%emt 0:0:1]} 34. Nxf5 {[%emt 0:0:44]} Qf6 {[%emt 0:1:23]} 35. Nd6 {[%emt 0:1:3]} Qd4 {[%emt 0:1:58]} 36. Rh7 {[%emt 0:0:51]
} Qxd3 {[%emt 0:0:36]} 37. Rf7+ {[%emt 0:0:1]} Kg8 {[%emt 0:0:0]} 38. Qh1 {[%emt 0:0:1]} 1-0

[Event "FIDE World Rapid-ch Open 2018"]
[White "Firouzja, Alireza"]
[Black "Zhigalko, Sergei"]
[Site "St. Petersburg"]
[Round "15.12"]
[Annotator "ChessBase"]
[Result "1-0"]
[Date "2018.12.28"]
[WhiteElo "2607"]
[BlackElo "2604"]
[PlyCount "73"]
[TimeControl "900+10"]

1. Nf3 {[%emt 0:0:0]} d5 {[%emt 0:0:0]} 2. d4 {[%emt 0:0:0]} e6 {[%emt 0:0:0]} 3. c4 {[%emt 0:0:0]} c6 {[%emt 0:0:0]} 4. Qc2 {[%emt 0:0:13]} dxc4 {[%emt 0:0:0]} 5. Qxc4 {[%emt 0:0:16]} Nf6 {[%emt 0:0:1]} 6. g3 {[%emt 0:0:0]} b5 {[%emt 0:0:2]} 7. Qb3 {[%emt 0:0:1]} Bb7 {[%emt 0:0:10]} 8. Bg2 {[%emt 0:0:3]} Nbd7 {[%emt 0:0:9]} 9. 0-0 {[%emt 0:0:8]} a6 {[%emt 0:0:0]} 10. a4 {[%emt 0:0:15]} Be7 {[%emt 0:0:34]} 11. Bg5 {[%emt 0:0:29]} 0-0 {[%emt 0:0:24]} 12. Nbd2 {[%emt 0:0:23]} Rc8 {[%emt 0:7:27]} 13. Rfc1 {[%emt 0:1:39]
} Qb6 {[%emt 0:1:18]} 14. Ne5 {[%emt 0:5:25]} Qxd4 {[%emt 0:0:0]} 15. Ndf3 {[%emt 0:0:28]} Qb4 {[%emt 0:0:51]} 16. Qxb4 {[%emt 0:0:6]} Bxb4 {[%emt 0:0:5]} 17. Bxf6 {[%emt 0:0:2]} Nxf6 {[%emt 0:0:13]} 18. Nd4 {[%emt 0:0:1]
} bxa4 {[%emt 0:1:22]} 19. Rxa4 {[%emt 0:1:3]} a5 {[%emt 0:0:0]} 20. Nexc6 {[%emt 0:0:33]} Rc7 {[%emt 0:2:14]} 21. Rca1 {[%emt 0:1:20]} Rfc8 {[%emt 0:1:56]} 22. Nxb4 {[%emt 0:0:15]} axb4 {[%emt 0:0:3]} 23. Rxb4 {[%emt 0:0:15]} Bxg2 {[%emt 0:0:23]} 24. Kxg2 {[%emt 0:0:1]} g6 {[%emt 0:0:0]} 25. Rba4 {[%emt 0:0:46]} Nd5 {[%emt 0:0:11]} 26. e4 {[%emt 0:1:40]} Nf6 {[%emt 0:0:1]} 27. Nb5 {[%emt 0:0:13]} Rc2 {[%emt 0:0:7]} 28. Nd6 {[%emt 0:0:35]
} R8c6 {[%emt 0:0:17]} 29. e5 {[%emt 0:1:9]} Nd7 {[%emt 0:0:0]} 30. Ra8+ {[%emt 0:1:9]} Kg7 {[%emt 0:0:3]} 31. R1a5 {[%emt 0:0:12]} Rxb2 {[%emt 0:0:30]} 32. Rd8 {[%emt 0:0:6]} Nb6 {[%emt 0:0:21]} 33. Ra7 {[%emt 0:0:6]
} Rcc2 {[%emt 0:0:10]} 34. Rxf7+ {[%emt 0:0:3]} Kh6 {[%emt 0:0:0]} 35. Rh8 {[%emt 0:0:8]} Nd5 {[%emt 0:0:11]} 36. Rhxh7+ {[%emt 0:0:0]} Kg5 {[%emt 0:0:1]} 37. Ne4+ {[%emt 0:0:1]} 1-0

[Event "FIDE World Rapid-ch Open 2018"]
[White "Gelfand, Boris"]
[Black "Petrosian, Tigran L."]
[Site "St. Petersburg"]
[Round "15.14"]
[Annotator "ChessBase"]
[Result "0-1"]
[Date "2018.12.28"]
[WhiteElo "2673"]
[BlackElo "2598"]
[PlyCount "144"]
[TimeControl "900+10"]

1. d4 {[%emt 0:0:0]} d6 {[%emt 0:0:0]} 2. Nf3 {[%emt 0:0:0]} Bg4 {[%emt 0:0:0]
} 3. c4 {[%emt 0:0:0]} Bxf3 {[%emt 0:0:0]} 4. exf3 {[%emt 0:0:0]} c6 {[%emt 0:0:0]} 5. Nc3 {[%emt 0:0:9]} g6 {[%emt 0:0:0]} 6. Be3 {[%emt 0:0:34]} Bg7 {[%emt 0:0:0]} 7. Be2 {[%emt 0:0:1]} Nf6 {[%emt 0:0:0]} 8. d5 {[%emt 0:0:55]} 0-0 {[%emt 0:0:2]} 9. 0-0 {[%emt 0:0:2]} Nbd7 {[%emt 0:0:1]
} 10. f4 {[%emt 0:0:14]} cxd5 {[%emt 0:0:8]} 11. Nxd5 {[%emt 0:0:35]
} Nxd5 {[%emt 0:1:54]} 12. Qxd5 {[%emt 0:0:1]} Bxb2 {[%emt 0:0:0]} 13. Rab1 {[%emt 0:0:1]} Bf6 {[%emt 0:0:4]} 14. Rxb7 {[%emt 0:0:43]
} Nc5 {[%emt 0:0:16]} 15. Bxc5 {[%emt 0:2:24]} dxc5 {[%emt 0:0:1]} 16. Qxc5 {[%emt 0:0:1]} Qd2 {[%emt 0:0:39]} 17. Bf3 {[%emt 0:1:2]} Qxa2 {[%emt 0:0:0]} 18. Rc7 {[%emt 0:0:37]} Rab8 {[%emt 0:0:3]} 19. Rxa7 {[%emt 0:2:38]
} Qc2 {[%emt 0:0:1]} 20. g3 {[%emt 0:0:56]} Qd3 {[%emt 0:1:55]} 21. Ra3 {[%emt 0:1:19]
} Qc2 {[%emt 0:1:26]} 22. Ra6 {[%emt 0:1:56]} Qd3 {[%emt 0:0:0]} 23. Rxf6 {[%emt 0:0:56]} exf6 {[%emt 0:0:4]} 24. Bd5 {[%emt 0:0:0]} Rb1 {[%emt 0:1:2]} 25. Rxb1 {[%emt 0:0:2]} Qxb1+ 26. Kg2 Kg7 {[%emt 0:0:0]} 27. Qe7 {[%emt 0:0:19]} Qd3 {[%emt 0:0:7]} 28. h4 {[%emt 0:0:19]} h5 {[%emt 0:0:8]
} 29. Qa7 {[%emt 0:0:47]} Qb3 {[%emt 0:0:9]} 30. Qd7 {[%emt 0:0:0]} Qb6 {[%emt 0:0:44]} 31. Qe7 {[%emt 0:0:32]} Qd8 {[%emt 0:0:4]} 32. Qa7 {[%emt 0:0:6]} Qd6 {[%emt 0:0:2]} 33. Qb7 {[%emt 0:0:20]} Qc5 {[%emt 0:0:54]
} 34. Qd7 {[%emt 0:0:8]} Qc8 {[%emt 0:0:31]} 35. Qa7 {[%emt 0:0:0]} Qd8 {[%emt 0:0:4]} 36. Qb7 {[%emt 0:0:12]} Qd6 {[%emt 0:0:2]} 37. Qa7 {[%emt 0:0:4]} f5 {[%emt 0:0:11]} 38. Qa1+ {[%emt 0:0:32]} Qf6 {[%emt 0:0:16]
} 39. Qa7 {[%emt 0:0:1]} Rd8 {[%emt 0:0:29]} 40. Qc7 {[%emt 0:0:0]} Re8 {[%emt 0:0:6]} 41. c5 {[%emt 0:0:51]} Re7 {[%emt 0:0:1]} 42. Qb6 {[%emt 0:0:1]} Qd4 {[%emt 0:0:9]} 43. Bf3 {[%emt 0:0:1]} Re1 {[%emt 0:0:7]
} 44. Qc7 {[%emt 0:0:18]} Qc4 {[%emt 0:0:26]} 45. Kh2 {[%emt 0:0:0]} Qf1 {[%emt 0:0:3]} 46. Bd5 {[%emt 0:0:8]} Qxf2+ {[%emt 0:0:5]} 47. Kh3 {[%emt 0:0:0]} Qf1+ {[%emt 0:0:1]} 48. Bg2 {[%emt 0:0:1]} Qd3 {[%emt 0:0:33]
} 49. Qb6 {[%emt 0:0:25]} Re3 {[%emt 0:0:9]} 50. Qb2+ {[%emt 0:0:12]
} Kh7 {[%emt 0:0:6]} 51. Qf2 {[%emt 0:0:3]} Qe2 {[%emt 0:0:0]} 52. Qxe2 {[%emt 0:0:14]} Rxe2 {[%emt 0:0:0]} 53. c6 {[%emt 0:0:17]} Rc2 {[%emt 0:0:1]} 54. Kh2 {[%emt 0:0:5]} Kg7 {[%emt 0:0:8]} 55. Kg1 {[%emt 0:0:1]
} Kf6 {[%emt 0:0:1]} 56. Bd5 {[%emt 0:0:3]} Ke7 {[%emt 0:0:0]} 57. Kf1 {[%emt 0:0:1]} Rc5 {[%emt 0:0:3]} 58. Bf3 {[%emt 0:0:2]} Kd6 {[%emt 0:0:3]} 59. Ke2 {[%emt 0:0:1]} Rc3 {[%emt 0:0:1]} 60. Kf2 {[%emt 0:0:2]
} Kc5 {[%emt 0:0:5]} 61. Kg2 {[%emt 0:0:18]} Kd4 {[%emt 0:0:0]} 62. Kf2 {[%emt 0:0:0]} Rc2+ {[%emt 0:0:1]} 63. Kg1 {[%emt 0:0:10]} Rd2 {[%emt 0:0:28]} 64. Kf1 {[%emt 0:0:23]} Ke3 {[%emt 0:0:3]} 65. Bh1 {[%emt 0:0:1]
} Rd1+ {[%emt 0:0:42]} 66. Kg2 {[%emt 0:0:1]} Rc1 {[%emt 0:0:0]} 67. Kh2 {[%emt 0:0:2]} Rc5 {[%emt 0:0:2]} 68. Kg1 {[%emt 0:0:5]} Ke2 {[%emt 0:0:6]} 69. Bg2 {[%emt 0:0:7]} Rc1+ {[%emt 0:0:45]} 70. Kh2 {[%emt 0:0:1]
} Rd1 {[%emt 0:0:7]} 71. Bh1 {[%emt 0:0:34]} Kf2 {[%emt 0:0:0]} 72. Bg2 {[%emt 0:0:2]} Rd3 {[%emt 0:0:3]} 0-1

[Event "FIDE World Rapid-ch Open 2018"]
[White "Anton Guijarro, David"]
[Black "Rakhmanov, Aleksandr"]
[Site "St. Petersburg"]
[Round "15.15"]
[Annotator "ChessBase"]
[Result "1-0"]
[Date "2018.12.28"]
[WhiteElo "2642"]
[BlackElo "2629"]
[PlyCount "95"]
[TimeControl "900+10"]

1. e4 {[%emt 0:0:0]} e5 {[%emt 0:0:0]} 2. Nf3 {[%emt 0:0:0]} Nf6 {[%emt 0:0:0]
} 3. d4 {[%emt 0:0:0]} Nxe4 {[%emt 0:0:3]} 4. dxe5 {[%emt 0:0:0]} d5 {[%emt 0:0:8]} 5. Nbd2 {[%emt 0:0:3]} Nxd2 {[%emt 0:0:7]} 6. Bxd2 {[%emt 0:0:3]} Be7 {[%emt 0:0:10]} 7. Bd3 {[%emt 0:0:4]} Be6 {[%emt 0:0:11]
} 8. Nd4 {[%emt 0:1:22]} Qd7 {[%emt 0:0:14]} 9. Nxe6 {[%emt 0:0:0]} Qxe6 {[%emt 0:0:22]} 10. 0-0 {[%emt 0:0:4]} Nd7 {[%emt 0:0:47]} 11. f4 {[%emt 0:0:27]} Nc5 {[%emt 0:0:46]} 12. Kh1 {[%emt 0:0:34]} Nxd3 {[%emt 0:0:25]
} 13. cxd3 {[%emt 0:0:3]} 0-0 {[%emt 0:2:25]} 14. d4 {[%emt 0:0:0]} f5 {[%emt 0:1:30]} 15. Qb3 {[%emt 0:1:12]} b6 {[%emt 0:0:10]} 16. a4 {[%emt 0:2:1]} c5 {[%emt 0:0:10]} 17. Rfc1 {[%emt 0:1:38]} c4 {[%emt 0:0:0]} 18. Qf3 {[%emt 0:0:37]} Rac8 {[%emt 0:1:49]} 19. b3 {[%emt 0:0:22]} Rfd8 {[%emt 0:0:33]} 20. h3 {[%emt 0:1:26]} g6 {[%emt 0:0:34]} 21. g4 {[%emt 0:0:14]
} cxb3 {[%emt 0:0:17]} 22. Rxc8 {[%emt 0:1:15]} Qxc8 {[%emt 0:0:0]} 23. Qxb3 {[%emt 0:0:49]} fxg4 {[%emt 0:0:16]} 24. Rc1 {[%emt 0:1:10]
} Qf5 {[%emt 0:1:11]} 25. Qc2 {[%emt 0:0:32]} Qh5 {[%emt 0:0:41]} 26. Qd3 {[%emt 0:0:1]
} gxh3 {[%emt 0:0:19]} 27. Kh2 {[%emt 0:0:1]} Qf5 {[%emt 0:0:0]} 28. Qxf5 {[%emt 0:0:46]} gxf5 {[%emt 0:0:1]} 29. Rc7 {[%emt 0:0:1]} Kf8 {[%emt 0:0:3]} 30. Kxh3 {[%emt 0:0:25]} Ke8 {[%emt 0:0:33]} 31. Be1 {[%emt 0:0:43]
} Rd7 {[%emt 0:0:1]} 32. Rc6 {[%emt 0:0:1]} Bd8 {[%emt 0:0:0]} 33. Bh4 {[%emt 0:1:11]} Rc7 {[%emt 0:0:1]} 34. Rh6 {[%emt 0:0:28]} Rc3+ {[%emt 0:0:2]} 35. Kg2 {[%emt 0:0:6]} Bxh4 {[%emt 0:0:10]} 36. Rxh4 {[%emt 0:0:2]
} Rc7 {[%emt 0:0:35]} 37. Rh5 {[%emt 0:0:17]} Rf7 {[%emt 0:0:0]} 38. Kf3 {[%emt 0:0:21]} a6 {[%emt 0:0:1]} 39. Rh6 {[%emt 0:0:4]} Rb7 {[%emt 0:0:1]} 40. Ke3 {[%emt 0:0:11]} b5 {[%emt 0:0:4]} 41. a5 {[%emt 0:0:0]} b4 {[%emt 0:0:1]} 42. Kd2 {[%emt 0:0:18]} Rb5 {[%emt 0:0:16]} 43. Rxa6 {[%emt 0:0:4]} h5 {[%emt 0:0:22]} 44. Ra8+ {[%emt 0:0:11]} Kf7 {[%emt 0:0:9]
} 45. a6 {[%emt 0:0:5]} b3 {[%emt 0:0:22]} 46. Kc1 {[%emt 0:0:0]} Kg7 {[%emt 0:0:24]} 47. a7 {[%emt 0:0:12]} Ra5 {[%emt 0:0:10]} 48. e6 {[%emt 0:0:7]} 1-0

[Event "FIDE World Rapid-ch Open 2018"]
[White "Oparin, Grigoriy"]
[Black "Saric, Ivan"]
[Site "St. Petersburg"]
[Round "15.16"]
[Annotator "RC"]
[Result "1-0"]
[Date "2018.12.28"]
[WhiteElo "2613"]
[BlackElo "2695"]
[PlyCount "117"]
[TimeControl "900+10"]

1. Nf3 {[%emt 0:0:0]} d5 {[%emt 0:0:0]} 2. g3 {[%emt 0:0:0]} c6 {[%emt 0:0:0]} 3. Bg2 {[%emt 0:0:0]} Bg4 {[%emt 0:0:2]} 4. 0-0 {[%emt 0:0:0]} e6 {[%emt 0:0:12]} 5. h3 {[%emt 0:0:1]} Bxf3 {[%emt 0:0:1]} 6. Bxf3 {[%emt 0:0:0]} Nd7 {[%emt 0:0:3]} 7. d3 {[%emt 0:0:5]} Ngf6 {[%emt 0:0:14]} 8. Bg2 {[%emt 0:0:4]} Bc5 {[%emt 0:0:13]} 9. Nd2 {[%emt 0:0:42]} a5 {[%emt 0:0:0]} 10. a4 {[%emt 0:0:12]} Qc7 {[%emt 0:0:4]} 11. e3 {[%emt 0:0:10]} 0-0 {[%emt 0:0:9]} 12. Qe2 {[%emt 0:0:2]} e5 {[%emt 0:0:4]} 13. e4 {[%emt 0:0:15]
} Rfe8 {[%emt 0:0:17]} 14. Nf3 {[%emt 0:0:56]} Bf8 {[%emt 0:0:0]} 15. Re1 {[%emt 0:1:32]} dxe4 {[%emt 0:0:15]} 16. dxe4 {[%emt 0:0:1]} Nc5 {[%emt 0:0:1]} 17. Qc4 {[%emt 0:0:16]} Rab8 {[%emt 0:0:43]} 18. Bg5 {[%emt 0:1:24]
} b5 {[%emt 0:0:27]} 19. axb5 {[%emt 0:0:2]} cxb5 {[%emt 0:0:0]} 20. Qc3 {[%emt 0:0:1]} b4 {[%emt 0:2:5]} 21. Qc4 {[%emt 0:0:3]} Nfd7 {[%emt 0:0:2]} 22. b3 {[%emt 0:0:36]} Nb6 {[%emt 0:0:15]} 23. Qe2 {[%emt 0:0:0]} a4 {[%emt 0:0:12]} 24. bxa4 {[%emt 0:0:5]} Ncxa4 {[%emt 0:0:8]} 25. Nh4 {[%emt 0:4:56]} g6 {[%emt 0:0:9]} 26. Be3 {[%emt 0:0:47]} Nc3 {[%emt 0:1:5]
} 27. Qg4 {[%emt 0:0:4]} Nc4 {[%emt 0:0:5]} 28. Bf1 {[%emt 0:0:0]} Nxe3 {[%emt 0:0:7]} 29. Rxe3 {[%emt 0:0:1]} Ra8 {[%emt 0:0:44]} 30. Rxa8 {[%emt 0:0:32]} Rxa8 {[%emt 0:0:1]} 31. Rd3 {[%emt 0:0:1]} Ra1 {[%emt 0:1:9]
} 32. Kg2 {[%emt 0:1:20]} Qc6 {[%emt 0:1:0]} 33. Nf3 {[%emt 0:0:0]} h5 {[%emt 0:0:53]} 34. Qg5 {[%emt 0:0:37]} Nxe4 {[%emt 0:3:47]} 35. Qxe5 {[%emt 0:0:2]} Bg7 {[%emt 0:0:44]} 36. Qd5 {[%emt 0:0:41]} Qxd5 {[%emt 0:0:10]
} 37. Rxd5 {[%emt 0:0:1]} Ra8 {[%emt 0:3:17]} 38. Bd3 {[%emt 0:0:9]
} Nf6 {[%emt 0:0:33]} 39. Rb5 {[%emt 0:0:1]} Bf8 {[%emt 0:0:0]} 40. Rb7 {[%emt 0:0:16]} Rd8 {[%emt 0:0:19]} 41. Ne5 {[%emt 0:0:27]} Rd5 {[%emt 0:0:45]} 42. Rxf7 {[%emt 0:1:0]} Bg7 {[%emt 0:0:12]} 43. Bc4 {[%emt 0:0:4]
} Rxe5 {[%emt 0:0:5]} 44. Rxf6+ {[%emt 0:0:27]} Kh7 {[%emt 0:0:0]} 45. Rb6 {[%emt 0:0:7]} Bf8 {[%emt 0:0:3]} 46. Bd3 {[%emt 0:0:3]} Bc5 {[%emt 0:0:36]} 47. Rxg6 {[%emt 0:0:3]} Kh8 {[%emt 0:0:1]} 48. f4 {[%emt 0:0:12]
} Rd5 {[%emt 0:0:3]} 49. Rg5 {[%emt 0:0:31]} Rxg5 {[%emt 0:0:0]} 50. fxg5 {[%emt 0:0:1]} h4 {[%emt 0:0:26]} 51. gxh4 {[%emt 0:0:4]} Kg7 {[%emt 0:0:16]} 52. Kf3 {[%emt 0:0:1]} Be7 {[%emt 0:0:10]} 53. Kg4 {[%emt 0:0:1]
} Bc5 {[%emt 0:0:2]} 54. h5 {[%emt 0:0:1]} Be3 {[%emt 0:0:0]} 55. h6+ {[%emt 0:0:2]} Kf7 {[%emt 0:0:1]} 56. Bc4+ {[%emt 0:0:9]} Kf8 {[%emt 0:0:0]} 57. Kf5 {[%emt 0:0:9]} Bd2 {[%emt 0:0:6]} 58. h4 {[%emt 0:0:4]
} Be3 {[%emt 0:0:3]} 59. Kg6 {[%emt 0:0:3]} 1-0

[Event "FIDE World Rapid-ch Open 2018"]
[White "Le, Quang Liem"]
[Black "Demchenko, Anton"]
[Site "St. Petersburg"]
[Round "15.18"]
[Annotator "RC"]
[Result "1/2-1/2"]
[Date "2018.12.28"]
[WhiteElo "2714"]
[BlackElo "2679"]
[PlyCount "130"]
[TimeControl "900+10"]

1. c4 {[%emt 0:0:0]} Nf6 {[%emt 0:0:0]} 2. Nc3 {[%emt 0:0:0]} g6 {[%emt 0:0:0]
} 3. e4 {[%emt 0:0:0]} d6 {[%emt 0:0:0]} 4. d4 {[%emt 0:0:0]} Bg7 {[%emt 0:0:0]} 5. Nge2 {[%emt 0:0:2]} 0-0 {[%emt 0:0:8]} 6. Ng3 {[%emt 0:0:1]} e5 {[%emt 0:0:6]} 7. d5 {[%emt 0:0:2]} a5 {[%emt 0:0:1]} 8. h4 {[%emt 0:0:9]} h5 {[%emt 0:0:1]} 9. Bg5 {[%emt 0:0:9]} Na6 {[%emt 0:0:2]
} 10. Be2 {[%emt 0:0:2]} Qe8 {[%emt 0:0:1]} 11. Qc2 {[%emt 0:0:0]} Bd7 {[%emt 0:1:40]} 12. f3 {[%emt 0:1:6]} Nh7 {[%emt 0:0:30]} 13. Be3 {[%emt 0:0:30]} Qe7 {[%emt 0:0:39]} 14. Nf1 {[%emt 0:1:6]} f5 {[%emt 0:0:0]} 15. 0-0-0 {[%emt 0:0:5]} Nb4 {[%emt 0:3:49]} 16. Qb3 {[%emt 0:0:58]
} b6 {[%emt 0:0:21]} 17. Nd2 {[%emt 0:0:46]} Rf7 {[%emt 0:0:30]} 18. Kb1 {[%emt 0:0:7]
} Bf6 {[%emt 0:0:44]} 19. Bf2 {[%emt 0:0:12]} Bg7 {[%emt 0:0:0]} 20. Nb5 {[%emt 0:0:40]} Na6 {[%emt 0:0:23]} 21. Be3 {[%emt 0:0:54]} Bf6 {[%emt 0:0:8]} 22. g3 {[%emt 0:0:14]} Bg7 {[%emt 0:1:38]} 23. Rdf1 {[%emt 0:0:44]
} f4 {[%emt 0:0:36]} 24. gxf4 {[%emt 0:0:19]} exf4 {[%emt 0:0:0]} 25. Bf2 {[%emt 0:0:2]} Be5 {[%emt 0:0:24]} 26. Rfg1 {[%emt 0:0:4]} Qf6 {[%emt 0:0:6]} 27. Bf1 {[%emt 0:0:18]} Kh8 {[%emt 0:1:34]} 28. Bh3 {[%emt 0:0:11]
} Bxh3 {[%emt 0:0:10]} 29. Rxh3 {[%emt 0:0:1]} Rg8 {[%emt 0:0:0]} 30. a3 {[%emt 0:1:6]} Nc5 {[%emt 0:0:26]} 31. Qc2 {[%emt 0:0:17]} g5 {[%emt 0:1:55]} 32. hxg5 {[%emt 0:0:3]} Rxg5 {[%emt 0:0:2]} 33. Rgh1 {[%emt 0:0:11]
} Rg2 {[%emt 0:0:55]} 34. Bxc5 {[%emt 0:1:41]} bxc5 {[%emt 0:0:0]} 35. Rxh5 {[%emt 0:0:2]} Kg8 {[%emt 0:1:7]} 36. R5h2 {[%emt 0:0:29]
} Qg6 {[%emt 0:0:29]} 37. Qd1 {[%emt 0:1:42]} Rg7 {[%emt 0:0:2]} 38. a4 {[%emt 0:0:2]
} Qg3 {[%emt 0:0:33]} 39. Rxg2 {[%emt 0:0:20]} Qxg2 {[%emt 0:0:0]} 40. Kc2 {[%emt 0:0:10]} Rg3 {[%emt 0:1:3]} 41. Qf1 {[%emt 0:1:34]} Ng5 {[%emt 0:0:11]} 42. Qxg2 {[%emt 0:0:18]} Rxg2 {[%emt 0:0:1]} 43. Rf1 {[%emt 0:0:1]
} Bxb2 44. Nxc7 Bd4 {[%emt 0:1:12]} 45. Ne6 {[%emt 0:0:22]} Nxe6 {[%emt 0:0:14]} 46. dxe6 {[%emt 0:0:1]} Be3 {[%emt 0:0:1]} 47. Rd1 {[%emt 0:0:2]
} Kf8 {[%emt 0:0:9]} 48. Kd3 {[%emt 0:1:5]} Bxd2 49. Rxd2 Rxd2+ {[%emt 0:0:35]} 50. Kxd2 {[%emt 0:0:11]} Ke7 {[%emt 0:0:1]} 51. Kd3 {[%emt 0:0:44]
} Kxe6 {[%emt 0:0:4]} 52. Kd2 {[%emt 0:0:8]} Ke5 {[%emt 0:0:0]} 53. Kd3 {[%emt 0:0:2]} Kf6 54. Ke2 Ke6 {[%emt 0:0:28]} 55. Kd2 {[%emt 0:0:17]
} Ke5 {[%emt 0:0:4]} 56. Kd3 {[%emt 0:0:2]} Kf6 {[%emt 0:0:0]} 57. Ke2 {[%emt 0:0:1]} Kg5 {[%emt 0:0:12]} 58. Kf2 {[%emt 0:0:5]} Kg6 {[%emt 0:0:28]} 59. Kf1 {[%emt 0:0:15]} Kf7 {[%emt 0:0:9]} 60. Ke1 {[%emt 0:0:7]
} Ke6 {[%emt 0:0:3]} 61. Kd2 {[%emt 0:0:10]} Kf6 {[%emt 0:0:0]} 62. Ke2 {[%emt 0:0:3]} Kg6 {[%emt 0:0:21]} 63. Kf1 {[%emt 0:0:10]} Kg5 {[%emt 0:0:3]} 64. Kf2 {[%emt 0:0:6]} Kf6 {[%emt 0:0:6]} 65. Ke2 {[%emt 0:0:2]
} Ke5 1/2-1/2